bitfinex/quotes_SOLUSD_20251019
["timestamp","ask_amount","ask_price","bid_price","bid_amount"]
[1760910605958,22.88,189.64,189.62,0.72]
[1760910606771,23.53,189.64,189.6,0.72]
[1760910607572,23.53,189.64,189.61,0.72]
[1760910610677,0.65,189.63,189.59,5.27453979]
[1760910610879,0.65,189.62,189.59,5.99453979]
[1760910611081,0.65,189.62,189.59,67.69453978]
[1760910611577,0.67,189.63,189.59,67.69453978]
[1760910611881,23.55,189.63,189.6,0.69]
[1760910612873,23.55,189.63,189.6,5.96420365]
[1760910613255,23.55,189.63,189.6,5.27420365]
[1760910613459,0.67,189.62,189.6,5.27420365]
[1760910613667,0.67,189.61,189.59,61.69999999]
[1760910614987,0.67,189.6,189.57,16.53252478]
[1760910615232,0.67,189.6,189.57,0.67]
[1760910615688,0.67,189.6,189.56,5.27536117]
[1760910615874,0.67,189.59,189.56,5.94536117]
[1760910616185,23.55,189.59,189.56,67.64536116]
[1760910616571,0.67,189.59,189.56,62.36999999]
[1760910616763,0.67,189.58,189.56,61.69999999]
[1760910616965,0.67,189.58,189.55,5.94551558]
[1760910617685,0.67,189.59,189.55,5.94551558]
[1760910617983,0.67,189.58,189.55,0.67]
[1760910618171,31.41135254,189.6,189.54,67.17592359]
[1760910618380,31.41135254,189.6,189.54,0.2]
[1760910618381,0.67,189.57,189.54,0.2]
[1760910618684,0.67,189.56,189.54,0.2]
[1760910619881,5.27489135,189.58,189.54,0.2]
[1760910620084,0.67,189.57,189.54,0.2]
[1760910620384,33.75647521,189.55,189.54,0.2]
[1760910620581,34.42647521,189.55,189.54,0.2]
[1760910622188,39.70212807,189.55,189.54,0.2]
[1760910628110,42.95906596,189.55,189.54,0.2]
[1760910629308,39.70212807,189.55,189.54,0.2]
[1760910629599,10.87647521,189.56,189.54,0.87]
[1760910629797,10.87647521,189.56,189.55,0.67]
[1760910630804,10.87647521,189.56,189.54,0.87]
[1760910635901,10.87647521,189.56,189.55,0.67]
[1760910636980,10.87647521,189.56,189.54,0.2]
[1760910637194,10.87647521,189.56,189.54,0.87]
[1760910638206,10.87647521,189.58,189.55,0.67]
[1760910638499,11.54647521,189.58,189.55,0.67]
[1760910639383,10.87647521,189.58,189.56,0.67]
[1760910639581,10.87647521,189.58,189.57,0.67]
[1760910639782,10.87647521,189.58,189.56,0.67]
[1760910640199,10.87647521,189.59,189.56,0.67]
[1760910640601,11.54647521,189.59,189.56,0.67]
[1760910641384,10.87647521,189.59,189.55,5.27563842]
[1760910641596,10.87647521,189.59,189.56,0.67]
[1760910641804,0.67,189.64,189.56,2.75785273]
[1760910642105,0.67,189.64,189.58,5.27481801]
[1760910642304,0.67,189.64,189.59,0.67]
[1760910642507,10.87647521,189.64,189.59,0.67]
[1760910642890,10.87647521,189.64,189.59,5.94563842]
[1760910643214,10.87647521,189.64,189.6,0.67]
[1760910643411,10.87647521,189.64,189.6,5.94413249]
[1760910643712,2.75785273,189.65,189.61,0.67]
[1760910644008,2.75785273,189.65,189.6,5.27413249]
[1760910644009,10.87647521,189.65,189.62,0.67]
[1760910644211,12.96432794,189.65,189.62,0.67]
[1760910645593,12.96432794,189.65,189.62,5.94370021]
[1760910645793,13.68432794,189.65,189.62,5.94370021]
[1760910646003,13.68432794,189.65,189.62,5.27370021]
[1760910646432,13.68432794,189.65,189.62,5.97370021]
[1760910647013,2.80785273,189.65,189.62,5.97370021]
[1760910647185,2.08785273,189.65,189.62,5.97370021]
[1760910647389,2.80785273,189.65,189.62,5.97370021]
[1760910650528,2.08785273,189.65,189.62,5.97370021]
[1760910650906,2.80785273,189.65,189.62,5.97370021]
[1760910651424,2.08785273,189.65,189.63,0.7]
[1760910651604,2.08785273,189.65,189.62,0.7]
[1760910652626,2.08785273,189.65,189.62,5.97366178]
[1760910653626,2.08785273,189.65,189.63,0.7]
[1760910655024,2.08785273,189.65,189.61,51.21423138]
[1760910655220,22.88,189.67,189.6,5.27563842]
[1760910655410,25.68785273,189.67,189.6,2.08785273]
[1760910655614,0.72,189.67,189.61,2.08785273]
[1760910655808,0.72,189.68,189.61,2.08785273]
[1760910656005,0.72,189.68,189.61,63.88785273]
[1760910656206,0.72,189.73,189.65,2.08785273]
[1760910656523,2.08785273,189.69,189.62,22.88]
[1760910656828,0.72,189.68,189.65,10.87647521]
[1760910657322,0.72,189.67,189.63,16.14990241]
[1760910657519,0.72,189.66,189.63,16.14990241]
[1760910658034,0.72,189.66,189.63,5.2734272]
[1760910658529,0.72,189.65,189.63,5.2734272]
[1760910659224,0.72,189.65,189.62,5.2737053]
[1760910664135,0.72,189.64,189.62,5.2737053]
[1760910664432,10.87647521,189.66,189.62,5.2737053]
[1760910664632,0.72,189.64,189.62,5.2737053]
[1760910670256,7.36016851,189.67,189.62,5.2737053]
[1760910670544,0.72,189.65,189.62,5.2737053]
[1760910673738,0.72,189.65,189.62,5.9837053]
[1760910675259,0.69,189.64,189.62,5.2737053]
[1760910683750,10.87647521,189.66,189.62,5.2737053]
[1760910684049,0.69,189.65,189.62,5.2737053]
[1760910687552,0.69,189.65,189.62,5.9337053]
[1760910690553,10.87647521,189.66,189.62,5.2737053]
[1760910690729,11.56647521,189.66,189.62,5.2737053]
[1760910690936,10.87647521,189.66,189.62,5.9337053]
[1760910691236,0.69,189.65,189.62,5.9337053]
[1760910691840,10.87647521,189.66,189.63,0.66]
[1760910692042,11.56647521,189.66,189.63,0.66]
[1760910694661,11.56647521,189.66,189.62,5.2737053]
[1760910694956,11.56647521,189.66,189.62,5.9337053]
[1760910696751,0.69,189.65,189.62,5.9337053]
[1760910699360,0.69,189.64,189.6,5.2742616]
[1760910699660,0.69,189.63,189.6,5.2742616]
[1760910699959,0.69,189.62,189.6,5.2742616]
[1760910704966,0.68,189.63,189.6,5.2742616]
[1760910705139,0.68,189.63,189.6,5.9442616]
[1760910705465,0.68,189.63,189.6,5.2742616]
[1760910705961,0.68,189.62,189.6,5.2742616]
[1760910706347,23.56,189.62,189.59,67.07440906]
[1760910706553,0.68,189.61,189.59,67.07440906]
[1760910708354,0.68,189.61,189.59,5.27440906]
[1760910710450,11.55647521,189.63,189.59,5.27440906]
[1760910710654,0.68,189.62,189.59,5.27440906]
[1760910711545,0.68,189.61,189.59,5.27440906]
[1760910719879,0.68,189.61,189.58,67.74478803]
[1760910721978,0.68,189.62,189.58,67.74478803]
[1760910723676,0.68,189.62,189.59,0.67]
[1760910723876,0.68,189.62,189.58,67.74478803]
[1760910724260,10.87647521,189.63,189.58,67.07478803]
[1760910724470,10.87647521,189.63,189.59,0.67]
[1760910727284,10.87647521,189.63,189.59,5.94452028]
[1760910727464,22.88,189.61,189.6,0.67]
[1760910729776,0.68,189.68,189.6,71.00351116]
[1760910729978,0.68,189.68,189.62,3.25924956]
[1760910730184,22.88,189.67,189.63,0.67]
[1760910730356,0.68,189.68,189.63,0.67]
[1760910730768,10.87647521,189.69,189.63,0.67]
[1760910730966,11.55647521,189.69,189.63,0.67]
[1760910731481,11.55647521,189.69,189.64,5.27314912]
[1760910731682,11.55647521,189.69,189.65,0.66]
[1760910733186,11.55647521,189.69,189.65,5.93278752]
[1760910733684,0.71,189.68,189.65,5.93278752]
[1760910735870,11.58647521,189.69,189.65,5.93278752]
[1760910736385,0.71,189.68,189.65,5.93278752]
[1760910737384,10.87647521,189.69,189.63,18.4569952]
[1760910737683,10.87647521,189.69,189.66,0.67]
[1760910737886,11.58647521,189.69,189.66,0.67]
[1760910738367,10.87647521,189.69,189.66,0.67]
[1760910738563,23.59,189.7,189.66,5.94256779]
[1760910740087,23.59,189.7,189.67,0.67]
[1760910740586,23.59,189.7,189.67,5.94207763]
[1760910742990,23.59,189.7,189.66,5.94259306]
[1760910743693,22.88,189.7,189.66,5.94259306]
[1760910743994,23.59,189.7,189.66,5.94259306]
[1760910744995,22.88,189.7,189.66,5.94259306]
[1760910745381,0.71,189.69,189.66,5.94259306]
[1760910747497,22.88,189.7,189.66,5.27259306]
[1760910747693,22.88,189.7,189.68,5.27203711]
[1760910748197,23.59,189.7,189.68,5.27203711]
[1760910748496,22.88,189.7,189.68,5.94203711]
[1760910748994,22.88,189.7,189.68,5.27203711]
[1760910749180,23.59,189.7,189.68,5.27203711]
[1760910750318,0.71,189.69,189.66,5.27259306]
[1760910750598,0.71,189.69,189.66,5.94259306]
[1760910751187,22.88,189.7,189.66,5.94259306]
[1760910751402,23.59,189.7,189.66,5.94259306]
[1760910752101,22.88,189.7,189.66,5.94259306]
[1760910752305,23.59,189.7,189.66,5.94259306]
[1760910752497,0.71,189.69,189.66,5.94259306]
[1760910756601,23.59,189.7,189.66,5.94259306]
[1760910756798,0.71,189.69,189.66,5.94259306]
[1760910757184,22.88,189.7,189.67,0.67]
[1760910757595,11.58647521,189.72,189.68,0.67]
[1760910757795,0.71,189.71,189.68,0.67]
[1760910757990,0.71,189.71,189.66,17.9413965]
[1760910758198,0.71,189.71,189.67,0.67]
[1760910758713,0.71,189.71,189.68,5.27203711]
[1760910759598,0.71,189.7,189.68,5.27203711]
[1760910760798,0.71,189.71,189.68,5.27203711]
[1760910761307,11.58647521,189.72,189.69,5.94159752]
[1760910761500,10.87647521,189.72,189.69,5.27159752]
[1760910761686,0.71,189.71,189.69,5.27159752]
[1760910762212,0.1,189.74,189.69,5.27159752]
[1760910762390,0.81,189.74,189.7,0.67]
[1760910762579,0.81,189.74,189.71,0.67]
[1760910763484,0.81,189.74,189.72,5.27092557]
[1760910765410,0.1,189.74,189.72,5.27092557]
[1760910765608,0.78,189.74,189.72,5.27092557]
[1760910770011,0.1,189.74,189.72,5.27092557]
[1760910771124,0.68,189.73,189.7,67.07120844]
[1760910771295,0.68,189.72,189.7,78.04768365]
[1760910771495,0.68,189.71,189.7,67.07120844]
[1760910772015,0.68,189.71,189.7,69.25594911]
[1760910772607,0.68,189.71,189.7,67.07120844]
[1760910772817,0.68,189.71,189.7,61.8]
[1760910773202,23.56,189.71,189.7,61.8]
[1760910776225,25.64474067,189.71,189.7,61.8]
[1760910777326,25.64474067,189.71,189.68,67.07203042]
[1760910777528,0.68,189.7,189.68,67.07203042]
[1760910782033,22.88,189.71,189.68,67.07203042]
[1760910782537,23.56,189.71,189.68,67.07203042]
[1760910783214,22.88,189.71,189.69,5.99170162]
[1760910783413,2.76474067,189.73,189.69,5.99170162]
[1760910783614,0.68,189.72,189.69,5.99170162]
[1760910784108,0.68,189.72,189.69,5.27170162]
[1760910785231,2.08474067,189.73,189.69,5.27170162]
[1760910785533,10.87647521,189.73,189.7,0.72]
[1760910785720,10.87647521,189.73,189.69,5.27170162]
[1760910786028,10.87647521,189.73,189.71,0.72]
[1760910786421,10.87647521,189.73,189.69,5.27170162]
[1760910786732,10.87647521,189.73,189.7,0.72]
[1760910786914,11.55647521,189.73,189.7,0.72]
[1760910787316,10.87647521,189.73,189.71,0.72]
[1760910788029,10.87647521,189.73,189.69,5.27170162]
[1760910788226,10.87647521,189.73,189.7,5.27137084]
[1760910788424,10.87647521,189.73,189.7,5.99137084]
[1760910788735,22.98,189.74,189.71,0.72]
[1760910789629,22.98,189.74,189.7,21.12467493]
[1760910789833,22.98,189.74,189.71,0.72]
[1760910790429,0.68,189.73,189.71,5.2711563]
[1760910791535,0.68,189.73,189.7,5.27148128]
[1760910791837,0.71,189.72,189.7,5.27148128]
[1760910796245,23.64,189.74,189.7,5.96148128]
[1760910796627,23.64,189.74,189.71,5.9610011]
[1760910796827,0.66,189.73,189.71,5.2710011]
[1760910797748,0.66,189.73,189.7,5.27148128]
[1760910797949,0.66,189.72,189.7,67.07148128]
[1760910801145,10.87647521,189.69,189.67,15.85414189]
[1760910801350,0.66,189.68,189.64,5.27314912]
[1760910801539,0.66,189.67,189.64,5.27314912]
[1760910801734,0.66,189.66,189.62,5.2737053]
[1760910801956,0.66,189.65,189.62,5.2737053]
[1760910802323,22.88,189.66,189.62,5.2737053]
[1760910802651,0.66,189.65,189.62,5.2737053]
[1760910802860,22.88,189.66,189.62,5.2737053]
[1760910803038,0.66,189.64,189.62,5.2737053]
[1760910803347,0.66,189.64,189.6,5.96402742]
[1760910803528,0.66,189.63,189.6,5.27402742]
[1760910803930,0.66,189.63,189.6,5.96402742]
[1760910804253,0.66,189.63,189.6,5.27402742]
[1760910805148,0.66,189.63,189.6,0.69]
[1760910806026,0.66,189.63,189.58,5.27481801]
[1760910806027,2.08474067,189.65,189.58,5.27481801]
[1760910806231,0.66,189.64,189.58,5.96481801]
[1760910806453,0.66,189.63,189.58,5.96481801]
[1760910806752,0.66,189.62,189.58,5.96481801]
[1760910807142,0.66,189.62,189.6,5.2742616]
[1760910807946,0.66,189.63,189.6,5.2742616]
[1760910808147,0.66,189.62,189.6,5.2742616]
[1760910808348,2.08474067,189.64,189.6,5.2742616]
[1760910808559,0.66,189.63,189.59,0.69]
[1760910808859,2.08474067,189.64,189.59,0.69]
[1760910809054,0.66,189.62,189.59,0.69]
[1760910810455,0.66,189.62,189.58,5.27481801]
[1760910810456,0.66,189.62,189.58,5.96481801]
[1760910810756,0.66,189.62,189.59,0.69]
[1760910812065,0.66,189.62,189.59,5.96434397]
[1760910812458,12.96121588,189.64,189.59,5.96434397]
[1760910812658,12.96121588,189.64,189.6,0.69]
[1760910812659,0.66,189.63,189.6,0.69]
[1760910812963,0.66,189.63,189.59,0.69]
[1760910813149,0.66,189.63,189.6,0.69]
[1760910814362,0.66,189.63,189.58,7.35955868]
[1760910814566,0.66,189.63,189.6,5.2742616]
[1760910817042,0.66,189.63,189.6,5.9642616]
[1760910823071,0.66,189.63,189.6,5.2742616]
[1760910823289,0.66,189.63,189.6,5.9642616]
[1760910824281,3.25976223,189.63,189.6,5.2742616]
[1760910824448,0.7,189.62,189.6,5.2742616]
[1760910834385,3.95976223,189.63,189.6,5.2742616]
[1760910834688,0.7,189.63,189.6,5.2742616]
[1760910834886,0.7,189.62,189.6,5.2742616]
[1760910835055,0.7,189.62,189.58,5.98481801]
[1760910835580,0.7,189.61,189.58,5.27481801]
[1760910835775,0.7,189.62,189.58,67.78481801]
[1760910836782,0.7,189.62,189.58,67.07481801]
[1760910837081,0.7,189.62,189.6,5.2742616]
[1760910837781,3.95976223,189.63,189.6,5.2742616]
[1760910837983,0.7,189.62,189.6,5.2742616]
[1760910840359,3.25976223,189.63,189.6,5.2742616]
[1760910840573,0.7,189.62,189.6,5.2742616]
[1760910841083,3.95976223,189.62,189.6,5.2742616]
[1760910841383,3.95976223,189.62,189.59,5.27453979]
[1760910841762,0.7,189.62,189.59,5.98453979]
[1760910842594,0.7,189.62,189.59,5.27453979]
[1760910843582,0.7,189.62,189.59,5.98453979]
[1760910843997,0.7,189.61,189.59,5.27453979]
[1760910845569,10.87647521,189.64,189.59,5.27453979]
[1760910845772,3.95976223,189.63,189.59,5.27453979]
[1760910845972,0.7,189.62,189.59,5.27453979]
[1760910847186,0.7,189.61,189.59,5.27453979]
[1760910848568,0.7,189.62,189.59,5.27453979]
[1760910849263,0.7,189.62,189.59,5.98453979]
[1760910850188,0.7,189.61,189.59,5.27453979]
[1760910850685,3.25976223,189.63,189.59,5.27453979]
[1760910850886,0.7,189.62,189.59,5.27453979]
[1760910851585,0.7,189.62,189.59,5.99453979]
[1760910852167,23.54,189.61,189.59,5.27453979]
[1760910853465,23.54,189.61,189.55,63.52]
[1760910853466,3.91976223,189.6,189.55,63.52]
[1760910853785,3.91976223,189.59,189.55,63.52]
[1760910853963,0.67,189.58,189.55,63.52]
[1760910854365,0.67,189.58,189.55,68.79544002]
[1760910854565,3.25976223,189.59,189.55,68.79544002]
[1760910854770,3.92976223,189.59,189.55,68.79544002]
[1760910854984,0.67,189.58,189.55,68.79544002]
[1760910855190,0.67,189.58,189.55,68.07544002]
[1760910855770,0.67,189.57,189.55,68.07544002]
[1760910858977,3.92976223,189.56,189.55,1.0]
[1760910860410,14.80623744,189.56,189.55,1.0]
[1760910861091,42.96161199,189.56,189.55,1.0]
[1760910862696,34.42647521,189.56,189.55,1.0]
[1760910862872,22.88,189.56,189.55,1.0]
[1760910871302,23.55,189.56,189.55,1.0]
[1760910871483,26.80976223,189.56,189.55,1.0]
[1760910876400,20.08161199,189.56,189.55,1.0]
[1760910876716,16.82184976,189.56,189.55,1.0]
[1760910876900,20.08161199,189.56,189.55,1.0]
[1760910877284,22.19795811,189.56,189.55,1.0]
[1760910878710,21.02711638,189.56,189.55,1.0]
[1760910886294,29.38279838,189.56,189.55,1.0]
[1760910886595,22.88,189.52,189.5,0.2]
[1760910886789,12.96539571,189.51,189.5,0.2]
[1760910887020,13.65539571,189.51,189.5,0.2]
[1760910887914,18.9321621,189.51,189.5,0.2]
[1760910900549,16.8432416,189.51,189.5,0.2]
[1760910900835,18.9321621,189.51,189.5,0.2]
[1760910901911,34.81147928,189.51,189.5,1e-08]
[1760910902936,37.5715996,189.51,189.5,1e-08]
[1760910904126,10.87647521,189.47,189.42,0.2]
[1760910904328,35.84539571,189.43,189.42,0.2]
[1760910904520,35.84539571,189.43,189.42,0.92]
[1760910904717,37.96319848,189.43,189.42,0.92]
[1760910905018,37.96319848,189.43,189.42,0.2]
[1760910905419,43.24219335,189.43,189.42,0.2]
[1760910906532,41.15327285,189.43,189.42,0.2]
[1760910906724,43.24219335,189.43,189.42,0.2]
[1760910908232,41.15327285,189.43,189.42,0.2]
[1760910908534,43.24219335,189.43,189.42,0.2]
[1760910909533,43.93219335,189.43,189.42,0.2]
[1760910910428,43.24219335,189.43,189.42,0.2]
[1760910911814,43.92219335,189.43,189.42,0.2]
[1760910912531,20.36219335,189.43,189.42,0.2]
[1760910912730,12.96539571,189.43,189.42,0.85]
[1760910913114,35.84539571,189.43,189.42,0.85]
[1760910913743,12.96539571,189.43,189.42,0.85]
[1760910914131,35.84539571,189.43,189.42,0.85]
[1760910914336,24.9689205,189.43,189.42,0.85]
[1760910921953,24.9689205,189.43,189.42,0.2]
[1760910922129,35.84539571,189.43,189.42,0.2]
[1760910922337,41.80439058,189.43,189.42,0.2]
[1760910922528,41.12439058,189.43,189.42,0.2]
[1760910924233,41.80439058,189.43,189.42,0.2]
[1760910925747,18.92439058,189.43,189.42,0.2]
[1760910938867,20.10375431,189.43,189.42,0.2]
[1760910944068,20.13375431,189.43,189.42,0.2]
[1760910949670,22.25155708,189.43,189.42,0.2]
[1760910950868,21.54155708,189.43,189.42,0.2]
[1760910951269,19.42375431,189.43,189.42,0.2]
[1760910954267,20.13375431,189.43,189.42,0.2]
[1760910960081,19.42375431,189.43,189.42,0.2]
[1760910960374,20.13375431,189.43,189.42,0.2]
[1760910967078,19.42375431,189.43,189.42,0.2]
[1760910967280,20.13375431,189.43,189.42,0.2]
[1760910978891,19.42375431,189.43,189.42,0.2]
[1760910979393,20.07375431,189.43,189.42,0.2]
[1760910981091,16.80547008,189.43,189.42,0.2]
[1760910981389,20.07375431,189.43,189.42,0.2]
[1760910981570,22.19133285,189.43,189.42,0.2]
[1760910982373,45.07133285,189.43,189.42,0.2]
[1760910982690,26.14828423,189.43,189.42,0.85]
[1760910984088,5.38563859,189.44,189.42,0.85]
[1760910984286,2.11735436,189.44,189.43,0.65]
[1760910984791,3.26828423,189.45,189.43,0.65]
[1760910987090,3.26828423,189.46,189.43,5.92882453]
[1760910987290,26.14828423,189.45,189.44,0.65]
[1760910989992,26.14828423,189.45,189.42,0.85]
[1760910990283,3.26828423,189.43,189.42,0.85]
[1760910990476,3.26828423,189.43,189.42,0.2]
[1760910991088,3.26828423,189.43,189.42,0.85]
[1760910991292,3.26828423,189.43,189.42,62.65]
[1760910994771,26.14828423,189.43,189.42,62.65]
[1760910995278,22.88,189.43,189.42,62.65]
[1760910997280,22.88,189.43,189.42,0.85]
[1760911000098,22.88,189.43,189.42,0.2]
[1760911004000,22.88,189.43,189.42,0.85]
[1760911004699,22.88,189.43,189.42,0.2]
[1760911005699,2.74065912,189.45,189.42,0.2]
[1760911006601,0.67,189.44,189.42,0.2]
[1760911011508,2.76065912,189.44,189.42,0.2]
[1760911017800,2.09065912,189.44,189.42,0.2]
[1760911018001,2.09065912,189.45,189.42,0.92]
[1760911018203,2.76065912,189.45,189.42,0.92]
[1760911018387,2.76065912,189.45,189.42,0.2]
[1760911018592,2.09065912,189.45,189.42,0.2]
[1760911018792,0.67,189.44,189.42,0.2]
[1760911020618,0.67,189.44,189.42,62.0]
[1760911020822,2.09065912,189.45,189.42,62.0]
[1760911021008,2.09065912,189.43,189.42,62.0]
[1760911021317,0.67,189.43,189.42,62.0]
[1760911021620,2.09065912,189.43,189.42,62.0]
[1760911021822,2.76065912,189.44,189.42,62.0]
[1760911022120,2.09065912,189.44,189.42,62.0]
[1760911022318,0.67,189.43,189.42,62.0]
[1760911025529,23.55,189.43,189.42,62.0]
[1760911026327,22.88,189.44,189.42,62.0]
[1760911026618,24.97065912,189.44,189.42,0.2]
[1760911026825,25.64065912,189.44,189.42,0.2]
[1760911027407,22.88,189.43,189.42,0.2]
[1760911030251,12.65817989,189.53,189.42,0.92]
[1760911030408,2.09065912,189.48,189.43,0.72]
[1760911030726,2.76065912,189.49,189.43,2.81065912]
[1760911030929,2.76065912,189.49,189.44,0.72]
[1760911031117,23.55,189.48,189.43,74.76713433]
[1760911031309,23.55,189.48,189.44,0.72]
[1760911032215,23.55,189.48,189.45,5.27843758]
[1760911032411,25.62065912,189.48,189.43,72.67647521]
[1760911032617,25.62065912,189.48,189.44,0.71]
[1760911033212,25.62065912,189.48,189.45,0.71]
[1760911034827,25.62065912,189.48,189.43,77.95532476]
[1760911035128,0.72,189.47,189.44,5.98870326]
[1760911035323,0.72,189.47,189.44,67.78870326]
[1760911035545,0.72,189.47,189.44,83.66381901]
[1760911035926,2.09065912,189.48,189.44,82.95381901]
[1760911036135,0.72,189.46,189.44,82.95381901]
[1760911036320,0.72,189.46,189.44,67.07870326]
[1760911036523,2.81065912,189.47,189.44,67.07870326]
[1760911037025,2.09065912,189.47,189.44,67.07870326]
[1760911037226,0.72,189.46,189.44,67.07870326]
[1760911037546,2.81065912,189.45,189.44,61.8]
[1760911037850,2.81065912,189.45,189.43,61.8]
[1760911038018,2.81065912,189.44,189.43,61.8]
[1760911041141,2.81065912,189.44,189.42,62.0]
[1760911041327,0.72,189.43,189.42,62.0]
[1760911043143,0.72,189.43,189.42,67.27927357]
[1760911043326,2.09065912,189.44,189.42,67.27927357]
[1760911043524,0.72,189.45,189.42,67.27927357]
[1760911043724,0.72,189.45,189.42,67.98927357]
[1760911044829,25.69065912,189.46,189.42,67.98927357]
[1760911045029,23.6,189.46,189.43,5.9887491]
[1760911049357,0.72,189.46,189.43,5.9887491]
[1760911049931,0.72,189.46,189.43,67.7887491]
[1760911050131,0.72,189.46,189.43,83.66470496]
[1760911050358,0.72,189.46,189.43,67.7887491]
[1760911050655,0.72,189.46,189.45,5.27843758]
[1760911052153,0.72,189.46,189.44,5.27871621]
[1760911052448,0.72,189.46,189.44,21.15467207]
[1760911052651,0.72,189.46,189.44,5.27871621]
[1760911053931,2.81065912,189.47,189.44,5.27871621]
[1760911054131,2.81065912,189.47,189.44,5.98871621]
[1760911054632,2.81065912,189.47,189.44,5.27871621]
[1760911055050,2.09065912,189.48,189.45,0.71]
[1760911055360,2.81065912,189.48,189.45,0.71]
[1760911055837,2.81065912,189.48,189.45,61.8]
[1760911056144,0.72,189.47,189.45,61.8]
[1760911057234,0.72,189.47,189.46,5.27815897]
[1760911057551,2.81065912,189.48,189.46,5.27815897]
[1760911060259,25.69065912,189.48,189.46,67.07815897]
[1760911062855,26.86509591,189.48,189.46,67.07815897]
[1760911063450,3.26509591,189.47,189.46,67.07815897]
[1760911063835,23.6,189.48,189.46,67.07815897]
[1760911064033,26.84509591,189.48,189.46,67.07815897]
[1760911065459,3.26509591,189.47,189.46,67.07815897]
[1760911065938,23.58,189.48,189.46,67.07815897]
[1760911066142,3.26509591,189.47,189.46,67.07815897]
[1760911068758,26.84509591,189.48,189.46,67.07815897]
[1760911069450,22.88,189.48,189.46,67.76815897]
[1760911071940,26.14509591,189.48,189.46,67.76815897]
[1760911073365,26.14509591,189.48,189.46,67.07815897]
[1760911073769,26.84509591,189.48,189.46,67.07815897]
[1760911074162,26.14509591,189.48,189.46,67.07815897]
[1760911074667,26.84509591,189.48,189.46,67.07815897]
[1760911074965,26.14509591,189.48,189.46,67.07815897]
[1760911075171,26.14509591,189.48,189.46,67.76815897]
[1760911076543,26.14509591,189.48,189.46,67.07815897]
[1760911077058,22.88,189.48,189.46,67.07815897]
[1760911077448,23.58,189.48,189.46,67.07815897]
[1760911078771,26.84509591,189.48,189.46,67.07815897]
[1760911079465,26.14509591,189.48,189.46,67.07815897]
[1760911080173,26.14509591,189.48,189.46,67.76815897]
[1760911080670,22.88,189.48,189.46,67.76815897]
[1760911081072,22.88,189.48,189.46,83.6424347]
[1760911081762,22.88,189.48,189.46,82.9524347]
[1760911083878,22.88,189.49,189.47,0.69]
[1760911084175,22.88,189.49,189.46,67.07815897]
[1760911084353,26.14509591,189.5,189.47,16.5634358]
[1760911084749,26.14509591,189.5,189.48,0.69]
[1760911084972,22.88,189.51,189.48,0.69]
[1760911085165,0.7,189.53,189.49,16.5617562]
[1760911085367,3.96509591,189.54,189.5,0.69]
[1760911085567,26.84509591,189.54,189.51,5.27676639]
[1760911086075,0.7,189.53,189.51,5.27676639]
[1760911087481,3.96509591,189.53,189.51,5.27676639]
[1760911087864,26.14509591,189.54,189.51,5.96676639]
[1760911088086,22.88,189.54,189.51,5.96676639]
[1760911088380,22.88,189.54,189.52,16.55923748]
[1760911088759,3.96509591,189.55,189.52,16.55923748]
[1760911088962,3.26509591,189.55,189.52,16.55923748]
[1760911089576,3.96509591,189.55,189.52,16.55923748]
[1760911089884,3.96509591,189.56,189.53,5.27620957]
[1760911090874,0.7,189.55,189.53,5.27620957]
[1760911091284,0.7,189.55,189.53,21.14376834]
[1760911092583,3.26509591,189.56,189.53,21.80376834]
[1760911092782,3.92509591,189.56,189.53,5.93620957]
[1760911092966,22.88,189.55,189.54,15.86755877]
[1760911093370,22.88,189.55,189.54,21.14348997]